{"text_format":"3","workbook":"xlsx","n_sheets":2,"sheets":["CENSO","INSTRUCTIVO"],"not_rendered":{"images":2},"read":"whole","date_system":"1900"}

{"sheet":"CENSO","index":0,"n_rows":48,"n_cols":43,"rows_kept":48,"merged":[[0,0,3,1],[0,2,0,29],[1,2,3,29],[3,30,3,31],[4,0,4,31],[5,27,5,28],[5,29,5,31],[6,29,6,31],[7,29,7,31],[8,29,8,31],[9,29,9,31],[10,29,10,31],[11,29,11,31],[12,29,12,31],[13,29,13,31],[14,29,14,31],[15,29,15,31],[16,29,16,31],[17,29,17,31],[18,29,18,31],[19,29,19,31],[20,29,20,31],[21,29,21,31],[22,29,22,31],[23,29,23,31],[24,29,24,31],[25,29,25,31],[26,29,26,31],[27,29,27,31],[28,29,28,31],[29,29,29,31],[30,29,30,31],[31,29,31,31],[32,29,32,31],[33,29,33,31],[34,29,34,31],[35,29,35,31],[36,29,36,31],[37,29,37,31],[38,29,38,31],[39,29,39,31],[40,29,40,31],[41,29,41,31],[42,29,42,31],[43,29,43,31],[44,29,44,31],[45,29,45,31],[46,29,46,31],[47,29,47,31]]}
[null,null,"FORMATO",{"$nulls":27},"CODIGO","SRC-S1-F3",null,null,"RADIOPERADORA-QUE REALIZA GESTION DE ACEPTACION","TIPO DE IDENTIFICACIÓN","CENTRO DE SALUD","SOSPECHOSO DE COVID 19","EAPB","ESTADO DE LA REMISION","CONDUCTOR","APH","IPS"]
[null,null,"CENSO DE TRASLADO DE PACIENTES A NIVELES SUPERIORES DE ATENCION EN SALUD - SERVICIO DE REFERENCIA Y CONTRAREFERENCIA",{"$nulls":27},"VERSIÓN",2,null,null,"JUAN PARDO","CC","CANAIMA","SI","ADRES","ACEPTADO","ALFONSO ROJAS","ADRIANA CANO","CENTRO OFTALMOLOGICO"]
[{"$nulls":30},"VIGENCIA","2021-11-08",null,null,"XIOMARA ALVAREZ","CE","GRANJAS","NO","AIC","CANCELADO","CAMILO MORALES","ALCIDES LOZANO","CENTRO UROLOGICO"]
[{"$nulls":30},"PAGINA 1 DE 2",{"$nulls":3},"ADRIANA CANO","RC","PALMAS",null,"ALIANSALUD EPS","URGENCIA VITAL","DIEGO PARDO","ANA GONZALEZ","CLINICA BELO HORIZONTE"]
[]
["No:","FECHA Y HORA DE SOLICITUD DE REMISION","RADIOPERADOR QUE INICA GESTION","PRIMER APELLIDO","SEGUNDO APELLIDO","PRIMER NOMBRE","SEGUNDO NOMBRE","TIPO DE IDENTIFICACIÓN","DOCUMENTO","EAPB","CENTRO DE SALUD","EDAD","DIAGNOSTICO","SOSPECHOSO DE COVID 19","FECHA DE ACEPTACION DE LA IPS","HORA DE NOTIFICACION A LA ZONA Y NOMBRE DE AUXILIAR","FECHA Y HORA DE DESPACHO","FECHA Y HORA DE TRASLADO","OPORTUNIDAD DE TRASLADO","HORA DE LLEGADA AL SITIO DE ACEPTACION","HORA DE REPORTE DISPONIBILIDAD MOVIL","TIEMPO DE DISPONIBILIDAD","IPS","ESTADO DE LA REMISION","OBSERVACION","RADIOPERADOR QUE GETIONA LA ACEPTACION","RADIOPERADORA QUE GESTIONA TRASLADO","TRIPULACION QUE REALIZA TRASLADO",null,"NOVEDAD",{"$nulls":4},"INGRID QUESADA","TI","IPC",null,"ANASWAYUU EPSI",null,"EDUARDO HUEJE","ANA SERRATO","CLINICA COVEN"]
[{"$nulls":18},{"$f":"O7-R7","v":0},null,null,{"$f":"T7-U7","v":0},{"$nulls":12},"GINA MEDINA","CNV","HOSPITALIZACION",null,"ASMET SALUD",null,"FABIAN GONZALEZ","ANA VARGAS","CLINICA EMCOSALUD"]
[{"$nulls":18},{"$f":"O8-R8","v":0},null,null,{"$f":"T8-U8","v":0},{"$nulls":12},"ANA VARGAS","PAS","CAIMI",null,"AXAL COLPATRIA",null,"FABIO MAHECHA","ANAYIBY VILLALBA","CLINICA MEDILASER"]
[{"$nulls":18},0,null,null,0,{"$nulls":12},"CONSTANZA TOVAR","ASI","DOMICILIO",null,"CAJA DE COMPENSACION DE LA GUAJIRA",null,"FELIPE BORRERO","CLAUDIA SALGADO","CLINICA MEDILASER ABNER LOZANO"]
[{"$nulls":18},0,null,null,0,{"$nulls":12},"CLAUDIA SALGADO","MSI","RED EXTERNA",null,"CAJACOPI",null,"FRANCISCO TOVAR","CONSTANZA TOVAR","CLINICA MEDILASER LA TOMA"]
[{"$nulls":18},0,null,null,0,{"$nulls":13},"PEP",null,null,"CAPITAL SALUD",null,"HAROLD QUESADA","DIEGO TRUJILLO","CLINICA UROS"]
[{"$nulls":18},0,null,null,0,{"$nulls":16},"COLPATRIA",null,"JHON VERA","GINA MEDINA","ESE HOSPITAL REGIONAL ALFONSO JARAMILLO SALAZAR"]
[{"$nulls":18},0,null,null,0,{"$nulls":16},"COMFAMILIAR HUILA",null,"JOSE IVAN VARGAS","INGRID QUESADA","HOSPITAL UNIVERSITARIO"]
[{"$nulls":18},0,null,null,0,{"$nulls":16},"COMFAMILIAR DE LA GUAJIRA",null,"JUAN CARLOS DIAZ","JUAN PARDO","INSTITUTO ROOSELVET"]
[{"$nulls":18},0,null,null,0,{"$nulls":16},"COMFAMILIAR DEL CHOCO",null,"MARIO GARCES","LINA QUINTERO","IPS. REMY"]
[{"$nulls":18},0,null,null,0,{"$nulls":16},"COMFENALCO VALLE",null,"OSCAR GALINDO","MARLEIDY LARA","OFTALMOLASER"]
[{"$nulls":18},0,null,null,0,{"$nulls":16},"COMPAÑIA MUNDIAL DE SEGUROS",null,"PEDRO SALAZAR","SANDRA CEDEÑO"]
[{"$nulls":18},0,null,null,0,{"$nulls":16},"COMPARTA",null,"VICENTE BAHAMON","TATIANA CACHAYA"]
[{"$nulls":18},0,null,null,0,{"$nulls":16},"COMPENSAR",null,"WALTER CUESTA","TATIANA HOYOS"]
[{"$nulls":18},0,null,null,0,{"$nulls":16},"CONVIDA",null,null,"XIOMARA ALVAREZ"]
[{"$nulls":18},0,null,null,0,{"$nulls":16},"COOMEVA",null,null,"YERALDIN GALINDO"]
[{"$nulls":18},0,null,null,0,{"$nulls":16},"COOSALUD",null,null,"YESSICA ROJAS"]
[{"$nulls":18},0,null,null,0,{"$nulls":16},"COPETA",null,null,"YIRA DUQUE"]
[{"$nulls":18},0,null,null,0,{"$nulls":16},"ECOOPSOS"]
[{"$nulls":18},0,null,null,0,{"$nulls":16},"ECOPETROL"]
[{"$nulls":18},0,null,null,0,{"$nulls":16},"EJERCITO NACIONAL"]
[{"$nulls":18},0,null,null,0,{"$nulls":16},"EMSSANAR"]
[{"$nulls":18},0,null,null,0,{"$nulls":16},"EPS SANITAS"]
[{"$nulls":18},0,null,null,0,{"$nulls":16},"EQUIDAD"]
[{"$nulls":18},0,null,null,0,{"$nulls":16},"FAMISANAR"]
[{"$nulls":18},0,null,null,0,{"$nulls":16},"LA PREVISORA"]
[{"$nulls":18},0,null,null,0,{"$nulls":16},"LIBERTI SEGUROS"]
[{"$nulls":18},0,null,null,0,{"$nulls":16},"MEDIMAS"]
[{"$nulls":18},0,null,null,0,{"$nulls":16},"MUNDIAL SEGUROS"]
[{"$nulls":18},0,null,null,0,{"$nulls":16},"MUNICIPIO DE ARMENIA QUINDIO"]
[{"$nulls":18},0,null,null,0,{"$nulls":16},"MUNICIPIO DE NEIVA"]
[{"$nulls":18},0,null,null,0,{"$nulls":16},"NUEVA EPS"]
[{"$nulls":18},0,null,null,0,{"$nulls":16},"POLICIA NACIONAL"]
[{"$nulls":18},0,null,null,0,{"$nulls":16},"POSITIVA"]
[{"$nulls":18},0,null,null,0,{"$nulls":16},"SALUD TOTAL"]
[{"$nulls":18},0,null,null,0,{"$nulls":16},"SANITAS"]
[{"$nulls":18},0,null,null,0,{"$nulls":16},"SAVIA SALUD"]
[{"$nulls":18},0,null,null,0,{"$nulls":16},"SECRETARIA DE SALUD DEPARTAMENTAL"]
[{"$nulls":18},0,null,null,0,{"$nulls":16},"SEGUROS COMERCIALES BOLIVAR S.A."]
[{"$nulls":18},0,null,null,0,{"$nulls":16},"SEGUROS DEL ESTADO"]
[{"$nulls":18},0,null,null,0,{"$nulls":16},"SERVIO OFTALMO BOGOTA"]
[{"$nulls":18},0,null,null,0,{"$nulls":16},"SURAMERICANA"]
[{"$nulls":18},0,null,null,0,{"$nulls":16},"UNION TEMPORAL TOLIHUILA"]

{"sheet":"INSTRUCTIVO","index":1,"n_rows":46,"n_cols":9,"rows_kept":46,"merged":[[0,0,3,0],[0,1,0,6],[1,1,3,6],[3,7,3,8],[4,0,4,8],[5,0,5,8],[6,0,6,8],[7,0,7,1],[7,2,7,8],[8,0,8,1],[8,2,8,8],[9,0,9,8],[10,0,10,8],[11,0,11,8],[12,0,12,1],[12,2,12,8],[13,0,13,1],[13,2,13,8],[14,0,14,1],[14,2,14,8],[15,0,15,1],[15,2,15,8],[16,0,16,1],[16,2,16,8],[17,0,17,1],[17,2,17,8],[18,0,18,1],[18,2,18,8],[19,0,19,1],[19,2,19,8],[20,0,20,1],[20,2,20,8],[21,0,21,1],[21,2,21,8],[22,0,22,1],[22,2,22,8],[23,0,23,1],[23,2,23,8],[24,0,24,1],[24,2,24,8],[25,0,25,1],[25,2,25,8],[26,0,26,1],[26,2,26,8],[27,0,27,1],[27,2,27,8],[28,0,28,1],[28,2,28,8],[29,0,29,1],[29,2,29,8],[30,0,30,1],[30,2,30,8],[31,0,31,1],[31,2,31,8],[32,0,32,1],[32,2,32,8],[33,0,33,1],[33,2,33,8],[34,0,34,1],[34,2,34,8],[35,0,35,1],[35,2,35,8],[36,0,36,1],[36,2,36,8],[37,0,37,1],[37,2,37,8],[38,0,38,1],[38,2,38,8],[39,0,39,8],[40,0,40,8],[41,0,41,1],[41,2,41,5],[41,6,41,8],[42,0,42,1],[42,2,42,5],[42,6,42,8],[43,0,43,1],[43,2,43,5],[43,6,43,8],[44,0,44,1],[44,2,44,5],[44,6,44,8],[45,0,45,1],[45,2,45,5],[45,6,45,8]]}
[null,"FORMATO",{"$nulls":5},"CODIGO","SRC-S1-F3"]
[null,"CENSO DE TRASLADO DE PACIENTES A NIVELES SUPERIORES DE ATENCION EN SALUD - SERVICIO DE REFERENCIA Y CONTRAREFERENCIA",{"$nulls":5},"VERSIÓN",2]
[{"$nulls":7},"VIGENCIA","2021-11-08"]
[{"$nulls":7},"PAGINA 2 DE 2"]
[]
["INSTRUCTIVO PARA DILIGENCIAR EL FORMATO\n \"CENSO DE TRASLADO DE PACIENTES A NIVELES SUPERIORES DE ATENCION EN SALUD - SERVICIO DE REFERENCIA Y CONTRAREFERENCIA\""]
[]
["OBJETIVO:",null,"garantizar que los servicios de urgencias y hospitalizacion comenten los usuarios que se encuentran en proceso de remision al servicio de referencia y contrareferencia con oportunidad E.S.E Carmen Emilia Ospina"]
["ALCANCE:",null,"Aplica para los servicios de urgencias y hospitalizacion de la entidad."]
[]
["Para el diligenciamiento correcto del formato tenga en cuenta lo siguiente:"]
[]
["No:",null,"Registrar numericamente el consecutivo del censo de traslado de pacientes."]
["FECHA Y HORA DE SOLICITUD DE REMISION:",null,"Registrar el día, mes, año y hora en que inicio el tramite de remisión del paciente."]
["RADIOPERADOR QUE INICIA GESTION:",null,"Registrar el nombre completo del radioperador (a) de turno."]
["PRIMER APELLIDO:",null,"Registrar primer apellido del paciente."]
["SEGUNDO APELLIDO:",null,"Registrar el segundo apellido del paciente."]
["PRIMER NOMBRE:",null,"Registrar el primer nombre del paciente."]
["SEGUNDO NOMBRE:",null,"Registrar el segundo nombre del paciente."]
["TIPO DE IDENTIFICACION:",null,"Registrar el tipo de identificacion si es cedula de ciudadania, tarjeta identidad o registro civil."]
["DOCUMENTO:",null,"Registrar numericamente el numero de la identificacion."]
["EAPB:",null,"Registrar la entidad prestadora de salud la cual pertenece."]
["CENTRO DE SALUD:",null,"Registrar la sede donde se deligencia el formato."]
["EDAD:",null,"Registrar numericamente en años la edad del paciente."]
["DIAGNOSTICO:",null,"Registrar el diagnostico de la patologia del paciente."]
["SOSPECHOSO DE COVID 19:",null,"Registrar si el paciente es o no sospechoso para COVID-19."]
["FECHA DE  DE ACEPTACION DE LA IPS:",null,"Registrar el día, mes, año y hora en que se realiza la aceptacion de la remision"]
["HORA DE NOTIFICACION A LA ZONA Y NOMBRE DE AUXILIAR",null,"Registrar el día, mes, año, hora y nombre a quien se le notifica la aceptacion de la remision en la zona"]
["FECHA Y HORA DE DESPACHO",null,"Registrar el día, mes, año y hora en que se realiza el despacho de ambulancia para el traslado del paciente."]
["FECHA Y HORA DE DE TRASLADO:",null,"Registrar el día, mes, año y hora en que se realiza el traslado del paciente."]
["HORA DE LLEGADA AL SITIO DE ACEPTACION",null,"Registrar el día, mes, año y hora en que la ambulancia llega a sitio de traslado del paciente."]
["HORA DE REPORTE DISPONIBILIDAD MOVIL",null,"Registrar el día, mes, año y hora en que la ambulancia queda disponible."]
["IPS:",null,"Regsitrar el nombre completo de la entidad donde se traslada el paciente."]
["ESTADO DE LA REMISION",null,"Regsitrar el estado de la remision del paciente."]
["OBSERVACION:",null,"Registrar las situaciones que considere pertinentes."]
["RADIOPERADOR QUE GETIONA LA ACEPTACION",null,"Registrar el nombre completo del radioperador (a) que gestiona la aceptacion"]
["RADIOPERADORA QUE GESTIONA TRASLADO",null,"Registrar el nombre completo del radioperador (a) que gestiona el traslado"]
["TRIPULACION QUE REALIZA TRASLADO",null,"Registrar el nombre del conductor y la Aux. APH que efectuan el traslado del paciente"]
["NOVEDADES:",null,"Registrar las situaciones que considere pertinentes."]
[]
["CONTROL DE CAMBIOS"]
["Versión",null,"Descripción del cambio",{"$nulls":3},"Fecha de aprobación"]
[1,null,"Elaboracion del documento: se realiza la elaboracion para llevar las estadisticas con el fin de unificar la informacion de los traslados externos de los pacientes que se encuentran en proceso de remision realizados en la ESE Carmen Emilia Ospian, obteniendo una mejora continua en el subproceso",{"$nulls":3},"2018-07-18"]
[2,null,"Modificación del documento: Se modifica documento con el fin de obtener una mejora continua en el subproceso \"Referencia y Contrareferencia\". Se realizan los siguientes ajustes: \n-Se modifica la informacion a registrar para el control de gestion de remision y traslado de pacientes a nivel superior. \n- Actualización de la vigencia.\n- Ajustes estructurales",{"$nulls":3},"2021-11-08"]
["Nombre:Yina Lizeth Cedeño Bermúdez.\nContratista Área Sistema de Referencia y Contrareferencia.  \n\nNombre: Juan Felipe Cabrera Peña.\nContratista Área Garantia de la Calidad.",null,"Nombre: Irma Susana Bermudez Acosta .\nContratista Área Garantia de la Calidad.",{"$nulls":3},"Nombre: Ingry Alexandra Suarez Castro.\nContratista Área Técnico-Científico."]
["Elaboró",null,"Revisó",{"$nulls":3},"Aprobó"]